bitfinex/quotes_SOLUSD_20230703
["timestamp","ask_amount","ask_price","bid_price","bid_amount"]
[1688375800142,21.833,19.374,19.364,21.843]
[1688375800442,55.0,19.373,19.364,21.843]
[1688375803848,21.833,19.374,19.364,21.843]
[1688375804040,55.0,19.373,19.364,21.843]
[1688375805547,55.0,19.374,19.364,21.843]
[1688375806447,76.833,19.374,19.364,21.843]
[1688375808843,55.0,19.374,19.364,21.843]
[1688375809050,76.832,19.375,19.364,21.843]
[1688375822171,21.83,19.377,19.364,21.843]
[1688375822557,55.0,19.376,19.364,21.843]
[1688375822872,21.834,19.374,19.364,21.843]
[1688375823056,76.834,19.373,19.364,21.843]
[1688375826670,55.0,19.373,19.364,21.843]
[1688375827776,76.834,19.373,19.364,21.843]
[1688375834867,55.0,19.373,19.364,21.843]
[1688375835177,72.053,19.38,19.364,21.843]
[1688375835482,20.0,19.379,19.364,21.843]
[1688375836083,21.832,19.375,19.364,21.843]
[1688375837495,55.0,19.374,19.364,21.843]
[1688375840078,76.833,19.374,19.364,21.843]
[1688375840279,55.0,19.374,19.364,21.843]
[1688375841068,76.833,19.374,19.364,21.843]
[1688375845780,55.0,19.374,19.364,21.843]
[1688375845973,76.833,19.374,19.364,21.843]
[1688375873529,76.833,19.374,19.363,21.844]
[1688375873530,21.84,19.368,19.363,21.844]
[1688375873736,21.84,19.368,19.362,21.846]
[1688375874032,21.842,19.366,19.361,21.847]
[1688375874230,21.845,19.364,19.36,21.848]
[1688375874432,21.845,19.364,19.359,21.849]
[1688375874623,76.846,19.363,19.359,21.849]
[1688375874810,21.846,19.363,19.359,21.849]
[1688375875012,55.0,19.362,19.359,21.849]
[1688375875625,55.0,19.363,19.359,21.849]
[1688375876035,76.845,19.363,19.359,21.849]
[1688375877139,55.0,19.363,19.359,21.849]
[1688375877521,55.0,19.364,19.359,21.849]
[1688375878037,76.845,19.364,19.359,21.849]
[1688375886530,76.845,19.364,19.358,21.85]
[1688375888940,76.845,19.364,19.352,423.31019922]
[1688375889137,76.845,19.364,19.353,56.269]
[1688375889844,76.845,19.364,19.355,21.854]
[1688375901460,76.845,19.364,19.355,73.444]
[1688375902047,76.845,19.364,19.355,21.854]
[1688375902358,76.845,19.364,19.355,73.444]
[1688375914560,76.845,19.364,19.355,21.854]
[1688375914745,76.845,19.364,19.355,73.444]
[1688375916873,55.0,19.364,19.355,73.444]
[1688375918270,21.845,19.364,19.355,73.444]
[1688375919578,55.0,19.363,19.355,73.444]
[1688375920373,76.846,19.363,19.355,73.444]
[1688375933888,55.0,19.363,19.355,73.444]
[1688375935183,76.846,19.363,19.355,73.444]
[1688375953907,76.846,19.363,19.355,73.33108193]
[1688375974408,55.0,19.363,19.355,73.33108193]
[1688375974613,55.0,19.369,19.355,73.33108193]
[1688375974818,21.844,19.365,19.355,73.33108193]
[1688375976011,21.844,19.365,19.355,21.74108193]
[1688375976012,55.0,19.364,19.355,21.74108193]
[1688375976216,21.847,19.362,19.355,73.33108193]
[1688375976525,21.849,19.36,19.355,73.33108193]
[1688375976722,55.0,19.359,19.355,73.33108193]
[1688375977099,76.849,19.36,19.355,73.33108193]
[1688375977300,55.0,19.36,19.355,73.33108193]
[1688375978204,55.0,19.361,19.355,73.33108193]
[1688375978612,76.848,19.361,19.355,73.33108193]
[1688375986524,76.848,19.361,19.349,56.279]
[1688375986725,76.848,19.361,19.349,56.28]
[1688375986726,35.81,19.36,19.349,56.28]
[1688375986930,21.852,19.357,19.351,21.858]
[1688375987102,21.852,19.357,19.35,21.86]
[1688375987308,55.0,19.356,19.35,21.86]
[1688375987503,76.854,19.356,19.351,51.59]
[1688375987721,76.854,19.356,19.352,51.59]
[1688375988609,133.115,19.356,19.352,51.59]
[1688375988824,133.115,19.356,19.35,51.59]
[1688375990532,133.115,19.356,19.349,51.59]
[1688375991532,133.115,19.356,19.349,73.451]
[1688375991919,78.115,19.356,19.349,51.59]
[1688375992123,55.0,19.355,19.349,51.59]
[1688375992318,21.856,19.354,19.349,51.59]
[1688375992630,55.0,19.353,19.349,73.451]
[1688375992827,21.858,19.352,19.349,21.861]
[1688375993132,55.0,19.351,19.349,21.861]
[1688375993524,76.859,19.351,19.346,91.18]
[1688375993830,76.859,19.351,19.347,21.863]
[1688375998235,76.859,19.351,19.346,113.044]
[1688375998622,76.859,19.351,19.346,21.864]
[1688376002339,56.257,19.358,19.346,331.664]
[1688376002641,21.854,19.355,19.352,21.857]
[1688376003239,21.854,19.355,19.35,15.79]
[1688376004146,56.247,19.361,19.352,21.857]
[1688376004443,21.852,19.358,19.352,21.857]
[1688376004642,76.853,19.357,19.352,21.857]
[1688376004844,21.853,19.357,19.352,21.857]
[1688376005028,55.0,19.36,19.352,21.857]
[1688376005029,76.853,19.356,19.352,21.857]
[1688376005536,55.0,19.356,19.352,21.857]
[1688376007225,55.0,19.357,19.352,21.857]
[1688376007527,55.0,19.358,19.352,21.857]
[1688376007727,76.851,19.358,19.352,21.857]
[1688376012145,55.0,19.358,19.352,21.857]
[1688376014836,55.0,19.359,19.352,21.857]
[1688376015436,76.851,19.359,19.352,21.857]
[1688376018850,55.0,19.359,19.352,21.857]
[1688376019559,76.85,19.359,19.352,21.857]
[1688376019848,55.0,19.359,19.352,21.857]
[1688376024346,20.0,19.358,19.352,21.857]
[1688376024650,55.0,19.357,19.352,21.857]
[1688376024853,21.854,19.356,19.352,21.857]
[1688376025056,55.0,19.355,19.352,21.857]
[1688376025435,76.855,19.355,19.352,21.857]
[1688376026053,21.855,19.355,19.352,21.857]
[1688376026347,55.0,19.354,19.352,21.857]
[1688376027550,76.856,19.354,19.351,21.858]
[1688376029552,76.856,19.354,19.35,21.859]
[1688376031141,76.856,19.354,19.347,21.863]
[1688376031351,76.856,19.354,19.341,153.6755]
[1688376031548,76.856,19.354,19.341,56.303]
[1688376031851,76.856,19.354,19.344,21.866]
[1688376043148,21.855,19.355,19.344,21.866]
[1688376043352,21.854,19.355,19.344,21.866]
[1688376043748,21.854,19.356,19.344,21.866]
[1688376045544,55.0,19.355,19.344,21.866]
[1688376045743,21.856,19.354,19.344,21.866]
[1688376046065,55.0,19.353,19.344,21.866]
[1688376046247,76.857,19.353,19.344,21.866]
[1688376047246,56.258,19.358,19.344,21.866]
[1688376047447,21.852,19.358,19.35,15.79]
[1688376047646,21.852,19.358,19.352,21.857]
[1688376047846,21.851,19.359,19.352,21.857]
[1688376048558,55.0,19.358,19.352,21.857]
[1688376053151,55.0,19.359,19.352,21.857]
[1688376054162,55.0,19.36,19.352,21.857]
[1688376055746,10.83719922,19.365,19.352,21.857]
[1688376056251,10.83719922,19.365,19.352,331.657]
[1688376056947,10.83719922,19.365,19.352,424.8471]
[1688376057265,32.68119922,19.365,19.352,424.8471]
[1688376057649,55.0,19.364,19.352,424.8471]
[1688376057946,76.845,19.364,19.352,424.8471]
[1688376058166,55.0,19.364,19.352,424.8471]
[1688376058351,100.59500193,19.369,19.352,424.8471]
[1688376058352,56.228,19.369,19.352,424.8471]
[1688376058551,20.0,19.368,19.36,15.9]
[1688376058757,20.0,19.368,19.362,78.089]
[1688376059575,20.0,19.368,19.362,21.846]
[1688376059749,76.841,19.367,19.362,21.846]
[1688376059956,76.841,19.367,19.359,56.25]
[1688376060265,76.841,19.367,19.361,21.846]
[1688376063370,133.07,19.367,19.357,56.257]
[1688376063869,133.07,19.367,19.36,21.849]
[1688376073484,133.07,19.367,19.36,21.848]
[1688376078780,76.841,19.367,19.36,21.848]
[1688376079689,76.841,19.367,19.359,21.849]
[1688376079893,76.841,19.367,19.36,21.848]
[1688376080693,76.841,19.367,19.359,21.849]
[1688376104414,70.363444,19.367,19.359,21.849]
[1688376105199,70.363444,19.367,19.358,21.85]
[1688376105508,70.363444,19.367,19.355,56.263]
[1688376105707,70.363444,19.367,19.351,102.679]
[1688376106902,70.363444,19.367,19.355,21.854]
[1688376107815,69.363444,19.367,19.355,21.854]
[1688376111619,10.83719922,19.366,19.355,21.854]
[1688376111918,78.088,19.363,19.355,21.854]
[1688376113324,78.088,19.363,19.353,21.856]
[1688376113510,15.81,19.36,19.351,21.858]
[1688376113824,21.852,19.358,19.349,21.86]
[1688376114122,21.855,19.355,19.349,21.86]
[1688376114322,21.857,19.353,19.349,21.86]
[1688376114507,55.0,19.352,19.349,21.86]
[1688376114708,76.859,19.352,19.349,21.86]
[1688376118117,76.859,19.352,19.345,56.292]
[1688376118315,76.859,19.352,19.347,21.863]
[1688376120020,76.859,19.352,19.346,21.864]
[1688376121314,21.855,19.355,19.346,21.864]
[1688376121835,21.854,19.356,19.346,21.864]
[1688376122517,55.0,19.355,19.346,21.864]
[1688376122727,76.854,19.355,19.346,21.864]
[1688376122919,55.0,19.355,19.346,21.864]
[1688376123310,76.854,19.355,19.346,21.864]
[1688376124019,55.0,19.355,19.346,21.864]
[1688376125120,76.855,19.355,19.346,21.864]
[1688376127715,76.255,19.359,19.346,21.864]
[1688376127927,21.852,19.358,19.35,15.79]
[1688376128126,21.852,19.358,19.352,21.857]
[1688376130032,55.0,19.357,19.352,21.857]
[1688376130228,21.854,19.356,19.352,21.857]
[1688376130535,21.854,19.356,19.347,158.985]
[1688376130738,21.854,19.356,19.349,21.86]
[1688376131631,21.856,19.354,19.349,21.86]
[1688376141029,55.0,19.353,19.349,21.86]
[1688376141243,21.858,19.352,19.349,21.86]
[1688376143145,55.0,19.351,19.346,21.864]
[1688376143337,21.861,19.35,19.346,21.864]
[1688376143541,55.0,19.349,19.346,21.864]
[1688376143847,76.862,19.349,19.346,21.864]
[1688376144740,55.0,19.349,19.346,21.864]
[1688376148041,55.0,19.35,19.346,21.864]
[1688376150529,55.0,19.351,19.346,21.864]
[1688376155841,55.0,19.352,19.346,21.864]
[1688376156151,76.858,19.352,19.346,21.864]
[1688376156549,55.0,19.352,19.346,21.864]
[1688376159142,76.858,19.352,19.346,21.864]
[1688376160756,55.0,19.352,19.346,21.864]
[1688376166746,76.858,19.352,19.346,21.864]
[1688376171261,55.0,19.352,19.346,21.864]
[1688376173156,76.858,19.352,19.346,21.864]
[1688376192082,55.0,19.352,19.346,21.864]
[1688376192378,56.256,19.358,19.346,21.864]
[1688376192677,10.83719922,19.358,19.346,21.864]
[1688376192874,72.11,19.36,19.346,21.864]
[1688376193078,20.0,19.359,19.346,21.864]
[1688376193274,30.83719922,19.359,19.346,21.864]
[1688376193667,21.853,19.357,19.346,21.864]
[1688376194068,143.38419922,19.359,19.346,21.864]
[1688376194069,21.855,19.355,19.346,21.864]
[1688376194264,55.0,19.354,19.346,21.864]
[1688376195074,76.856,19.354,19.346,21.864]
[1688376200484,21.855,19.355,19.346,21.864]
[1688376200788,21.854,19.356,19.346,21.864]
[1688376200972,55.0,19.355,19.346,21.864]
[1688376201872,76.855,19.355,19.346,21.864]
[1688376206779,21.855,19.355,19.346,21.864]
[1688376206987,21.852,19.358,19.35,15.79]
[1688376207285,21.851,19.359,19.352,21.857]
[1688376207479,55.0,19.358,19.352,21.857]
[1688376209187,55.0,19.359,19.352,21.857]
[1688376211390,76.849,19.36,19.352,21.857]
[1688376211767,55.0,19.36,19.352,21.857]
[1688376216791,55.0,19.366,19.352,331.657]
[1688376216995,15.86,19.38,19.352,331.657]
[1688376217178,21.833,19.375,19.36,15.79]
[1688376217498,15.86,19.38,19.366,180.676]
[1688376217800,21.83,19.377,19.366,180.676]
[1688376220500,55.0,19.376,19.366,180.676]
[1688376220807,76.832,19.376,19.366,180.676]
[1688376228986,76.832,19.376,19.366,21.842]
[1688376238910,21.831,19.377,19.366,21.842]
[1688376240183,76.831,19.376,19.366,21.842]
[1688376244493,55.0,19.376,19.362,403.0034]
[1688376244702,76.831,19.376,19.366,21.842]
[1688376254023,76.73496387,19.376,19.366,21.842]
[1688376299262,21.831,19.376,19.366,21.842]
[1688376300644,21.834,19.373,19.366,21.842]
[1688376300850,55.0,19.372,19.366,21.842]
[1688376301162,76.835,19.372,19.366,21.842]
[1688376302044,76.835,19.372,19.365,21.842]
[1688376309176,55.0,19.372,19.365,21.842]
[1688376309978,80.84390104,19.372,19.365,21.842]
[1688376311383,102.67890104,19.372,19.365,21.842]
[1688376311888,76.835,19.372,19.365,21.842]
[1688376315278,55.0,19.372,19.365,21.842]
[1688376315459,55.0,19.371,19.365,21.842]
[1688376315657,55.0,19.373,19.365,21.842]
[1688376316273,21.832,19.375,19.365,21.842]
[1688376316274,55.0,19.374,19.365,21.842]
[1688376316474,21.832,19.375,19.365,21.842]
[1688376317980,55.0,19.374,19.365,21.842]
[1688376318870,76.833,19.374,19.365,21.842]
[1688376319076,55.0,19.374,19.365,21.842]
[1688376320484,76.833,19.374,19.365,21.842]
[1688376320857,87.67019922,19.374,19.365,21.842]
[1688376323777,76.833,19.374,19.365,21.842]
[1688376328782,21.833,19.374,19.365,21.842]
[1688376329994,55.0,19.373,19.365,21.842]
[1688376330568,76.834,19.373,19.365,21.842]
[1688376331279,55.0,19.373,19.365,21.842]
[1688376331487,76.834,19.373,19.365,21.842]
[1688376335498,87.67119922,19.373,19.365,21.842]
[1688376337676,76.834,19.373,19.365,21.842]
[1688376337878,55.0,19.373,19.365,21.842]
[1688376338674,76.834,19.373,19.365,21.842]
[1688376346993,55.0,19.373,19.365,21.842]
[1688376348099,76.834,19.373,19.365,21.842]
[1688376348395,55.0,19.373,19.365,21.842]
[1688376348601,76.834,19.373,19.365,21.842]
[1688376349198,10.83719922,19.376,19.365,21.842]
[1688376349399,41.828,19.379,19.37,15.79]
[1688376349617,21.829,19.378,19.372,21.834]
[1688376350507,55.0,19.377,19.372,21.834]
[1688376351083,76.83,19.377,19.372,21.834]
[1688376351899,76.83,19.377,19.371,21.835]
[1688376356800,76.83,19.377,19.37,37.627]
[1688376364797,76.83,19.377,19.37,21.837]
[1688376373396,76.83,19.377,19.365,56.234]
[1688376374136,76.83,19.377,19.365,21.843]
[1688376374311,76.83,19.377,19.361,151.8216]
[1688376374312,87.66719922,19.377,19.361,95.5756]
[1688376374714,10.83719922,19.376,19.361,95.5756]
[1688376375012,21.836,19.372,19.364,21.843]
[1688376375213,21.839,19.369,19.364,21.843]
[1688376375815,21.838,19.37,19.364,21.843]
[1688376376004,76.839,19.369,19.364,21.843]
[1688376376318,55.0,19.369,19.364,21.843]
[1688376377704,55.0,19.37,19.364,21.843]
[1688376378419,76.838,19.37,19.364,21.843]
[1688376378716,76.838,19.37,19.364,21.844]
[1688376379598,55.0,19.37,19.364,21.844]
[1688376380203,76.836,19.371,19.364,21.844]
[1688376384217,133.054,19.371,19.36,15.79]
[1688376384520,76.836,19.371,19.364,21.844]
[1688376398930,76.836,19.371,19.364,21.344]
[1688376427853,55.0,19.371,19.364,21.344]
[1688376429254,21.831,19.376,19.364,21.344]
[1688376429642,10.83719922,19.378,19.364,21.344]
[1688376429849,20.0,19.379,19.37,15.9]
[1688376430158,21.828,19.378,19.372,21.834]
[1688376430950,55.0,19.377,19.372,21.834]
[1688376431154,76.83,19.377,19.372,21.834]
[1688376433557,56.184,19.383,19.372,21.834]
[1688376433746,21.827,19.38,19.372,21.834]
[1688376433949,56.184,19.383,19.372,21.834]
[1688376434174,21.826,19.381,19.372,21.834]
[1688376435162,55.0,19.38,19.372,21.834]
[1688376436653,21.826,19.381,19.372,21.834]
[1688376436854,21.823,19.383,19.372,21.834]
[1688376437660,21.822,19.384,19.372,21.834]
[1688376438064,55.0,19.383,19.372,21.834]
[1688376439455,76.823,19.383,19.372,21.834]
[1688376439654,55.0,19.383,19.372,21.834]
[1688376440661,76.823,19.383,19.372,21.834]
[1688376443250,55.0,19.383,19.372,21.834]
[1688376444969,76.823,19.383,19.372,21.834]
[1688376445182,55.0,19.383,19.372,21.834]
[1688376445967,15.86,19.39,19.372,342.47119922]
[1688376446169,158.632,19.391,19.38,15.9]
[1688376446370,21.819,19.387,19.383,21.822]
[1688376447267,55.0,19.386,19.383,21.822]
[1688376447465,76.819,19.386,19.383,21.822]
[1688376448561,76.819,19.386,19.382,21.823]
[1688376450157,76.819,19.386,19.381,21.824]
[1688376454076,55.0,19.386,19.381,21.824]
[1688376454379,102.44,19.397,19.381,21.824]
[1688376454767,113.27719922,19.397,19.381,21.824]
[1688376455575,55.0,19.396,19.381,21.824]
[1688376455783,21.813,19.392,19.381,21.824]
[1688376456987,55.0,19.391,19.381,21.824]
[1688376457287,76.815,19.391,19.381,21.824]
[1688376461475,55.0,19.391,19.381,21.824]
[1688376461979,76.814,19.391,19.381,21.824]
[1688376462177,56.146,19.396,19.381,21.824]
[1688376462383,71.98,19.398,19.381,21.824]
[1688376462596,56.129,19.402,19.381,21.824]
[1688376462775,21.807,19.397,19.381,21.824]
[1688376463283,21.807,19.398,19.382,309.8]
[1688376463598,21.807,19.398,19.386,180.482]
[1688376464380,76.807,19.397,19.386,180.482]
[1688376464989,76.807,19.397,19.386,21.818]
[1688376465187,76.807,19.397,19.384,21.821]
[1688376467686,76.807,19.397,19.38,56.191]
[1688376467888,15.86,19.39,19.381,21.824]
[1688376468107,76.817,19.389,19.381,21.824]
[1688376468610,21.819,19.386,19.381,21.824]
[1688376468788,21.819,19.386,19.38,21.826]
[1688376468993,21.822,19.384,19.38,21.826]
[1688376469301,55.0,19.383,19.38,21.826]
[1688376470487,76.823,19.383,19.38,21.826]
[1688376471405,55.0,19.383,19.38,21.826]
[1688376473685,76.823,19.383,19.38,21.826]
[1688376473897,55.0,19.383,19.38,21.826]
[1688376474898,55.0,19.384,19.38,21.826]
[1688376475790,76.822,19.384,19.38,21.826]
[1688376475994,55.0,19.384,19.38,21.826]
[1688376476505,76.822,19.384,19.38,21.826]
[1688376476900,55.0,19.384,19.38,21.826]
[1688376477895,76.822,19.384,19.38,21.826]
[1688376479692,76.822,19.384,19.378,21.827]
[1688376480908,21.822,19.384,19.374,92.3077]
[1688376481094,21.826,19.381,19.378,21.828]
[1688376481284,55.0,19.38,19.378,21.828]
[1688376481491,76.827,19.38,19.377,21.829]
[1688376481686,76.827,19.38,19.375,21.831]
[1688376483312,20.0,19.379,19.371,56.216]
[1688376483511,76.829,19.378,19.371,56.216]
[1688376483895,76.829,19.378,19.373,21.834]
[1688376484296,76.829,19.378,19.372,21.834]
[1688376486501,102.5,19.386,19.372,21.834]
[1688376486705,158.675,19.386,19.372,21.834]
[1688376487121,21.824,19.383,19.372,21.834]
[1688376487497,21.822,19.384,19.372,21.834]
[1688376487697,21.82,19.386,19.372,331.634]
[1688376488298,87.873,19.39,19.372,331.634]
[1688376488519,21.818,19.388,19.38,31.57]
[1688376488813,21.818,19.388,19.382,21.823]
[1688376489924,169.46219922,19.392,19.382,21.823]
[1688376489925,21.817,19.389,19.382,21.823]
[1688376490801,184.43182538,19.395,19.382,21.823]
[1688376490802,21.815,19.391,19.382,21.823]
[1688376491915,21.813,19.392,19.382,21.823]
[1688376492215,55.0,19.391,19.382,21.823]
[1688376493121,55.0,19.392,19.382,21.823]
[1688376494710,21.812,19.393,19.382,21.823]
[1688376496118,55.0,19.392,19.382,21.823]
[1688376499322,76.813,19.392,19.382,21.823]
[1688376499520,55.0,19.392,19.382,21.823]
[1688376501413,76.813,19.392,19.382,21.823]
[1688376502226,55.0,19.392,19.382,21.823]
[1688376502726,76.813,19.392,19.382,21.823]
[1688376504429,55.0,19.392,19.382,21.823]
[1688376504728,76.813,19.392,19.382,21.823]
[1688376505030,55.0,19.392,19.382,21.823]
[1688376506426,55.0,19.393,19.382,21.823]
[1688376506627,55.0,19.391,19.382,21.823]
[1688376506832,55.0,19.393,19.382,21.823]
[1688376509534,76.812,19.393,19.382,21.823]
[1688376509836,55.0,19.393,19.382,21.823]
[1688376510339,76.812,19.393,19.382,21.823]
[1688376514342,55.0,19.393,19.382,21.823]
[1688376514844,55.0,19.394,19.382,21.823]
[1688376516845,76.81,19.394,19.382,21.823]
[1688376517038,55.0,19.394,19.382,21.823]
[1688376517546,76.811,19.394,19.382,21.823]
[1688376518022,55.0,19.394,19.382,21.823]
[1688376518224,102.398,19.405,19.382,21.823]
[1688376518446,56.122,19.404,19.39,31.56]
[1688376518739,56.117,19.406,19.395,21.808]
[1688376518926,21.801,19.403,19.395,21.808]
[1688376520332,55.0,19.402,19.395,21.808]
[1688376521729,21.799,19.404,19.395,21.808]
[1688376522040,21.799,19.405,19.395,21.808]
[1688376523541,55.0,19.404,19.395,21.808]
[1688376525550,21.798,19.406,19.395,21.808]
[1688376525751,55.0,19.405,19.395,21.808]
[1688376527656,21.797,19.407,19.395,21.808]
[1688376527956,20.0,19.409,19.395,21.808]
[1688376528131,20.0,19.41,19.395,21.808]
[1688376529253,21.795,19.408,19.395,21.808]
[1688376529655,55.0,19.407,19.395,21.808]
[1688376529859,21.798,19.405,19.395,21.808]
[1688376530965,21.799,19.405,19.395,21.808]
[1688376531171,55.0,19.407,19.395,21.808]
[1688376531463,55.0,19.408,19.395,21.808]
[1688376531847,21.798,19.406,19.395,21.808]
[1688376532060,20.0,19.41,19.395,21.808]
[1688376532558,309.8,19.429,19.395,21.808]
[1688376532743,21.795,19.408,19.396,20.0]
[1688376532953,55.0,19.407,19.399,77.939]
[1688376533348,76.796,19.407,19.399,77.939]
[1688376533561,55.0,19.407,19.399,77.939]
[1688376535066,55.0,19.408,19.399,77.939]
[1688376536362,55.0,19.409,19.399,77.939]
[1688376537671,55.0,19.41,19.399,77.939]
[1688376538666,21.79,19.412,19.399,77.939]
[1688376539665,21.79,19.413,19.399,77.939]
[1688376540073,55.0,19.412,19.399,77.939]
[1688376540959,76.79,19.412,19.399,77.939]
[1688376541159,87.62719922,19.412,19.399,77.939]
[1688376551283,55.0,19.412,19.399,77.939]
[1688376551877,21.79,19.413,19.399,77.939]
[1688376552266,21.789,19.414,19.399,77.939]
[1688376552467,21.787,19.415,19.4,309.8]
[1688376552669,21.787,19.415,19.404,180.318]
[1688376554264,10.83719922,19.415,19.404,21.799]
[1688376554471,21.785,19.417,19.404,21.799]
[1688376554671,31.63,19.42,19.404,21.799]
[1688376554877,51.5,19.419,19.404,21.799]
[1688376555984,55.0,19.418,19.404,21.799]
[1688376556290,21.785,19.417,19.404,21.799]
[1688376556470,55.0,19.416,19.404,21.799]
[1688376557385,76.786,19.416,19.404,21.799]
[1688376564995,76.786,19.416,19.405,309.8]
[1688376565293,76.786,19.416,19.408,77.904]
[1688376570993,76.786,19.416,19.408,21.794]
[1688376577893,76.786,19.416,19.404,56.121]
[1688376578077,76.786,19.416,19.407,21.795]
[1688376578282,87.62319922,19.416,19.407,21.795]
[1688376578695,87.62319922,19.416,19.399,412.223]
[1688376578887,31.64,19.41,19.401,56.129]
[1688376579192,76.795,19.409,19.404,21.799]
[1688376581703,55.0,19.409,19.404,21.799]
[1688376588709,76.794,19.409,19.404,21.799]
[1688376588894,55.0,19.409,19.404,21.799]
[1688376597823,76.794,19.409,19.404,21.799]
[1688376598118,55.0,19.409,19.404,21.799]
[1688376598318,76.794,19.409,19.404,21.799]
[1688376599621,76.794,19.409,19.397,102.437]
[1688376599806,21.797,19.406,19.4,21.803]
[1688376600126,55.0,19.405,19.398,21.805]
[1688376600322,21.8,19.403,19.398,21.805]
[1688376600633,55.0,19.402,19.398,21.805]
[1688376600803,76.801,19.402,19.395,21.808]
[1688376601119,76.801,19.402,19.394,21.81]
[1688376601443,31.64,19.4,19.388,21.817]
[1688376601728,77.952,19.397,19.384,56.177]
[1688376602026,21.813,19.392,19.386,21.819]
[1688376602202,21.815,19.39,19.386,21.819]
[1688376603621,21.814,19.391,19.386,21.819]
[1688376603826,55.0,19.39,19.386,21.819]
[1688376604030,76.815,19.39,19.386,21.819]
[1688376604321,55.0,19.39,19.386,21.819]
[1688376604516,76.815,19.39,19.386,21.819]
[1688376606834,21.815,19.39,19.386,21.819]
[1688376608016,56.146,19.396,19.386,21.819]
[1688376608330,21.813,19.393,19.386,21.819]
[1688376608636,21.811,19.394,19.386,21.819]
[1688376610737,21.811,19.394,19.383,21.822]
[1688376611036,21.811,19.394,19.385,21.82]
[1688376613414,21.811,19.394,19.38,397.6]
[1688376613619,55.0,19.393,19.38,397.6]
[1688376613819,21.816,19.39,19.383,21.822]